[Event "Titled Tuesday Blitz October 31 Early 2023"]
[White "Pinero Rodriguez, Carlos Jose"]
[Black "Alexandre, Anne Shopie Elizabeth"]
[WhiteFideId "3901726"]
[BlackFideId "11902418"]
[WhiteElo "2501"]
[BlackElo "2809"]
[Result "0-1"]
[Round "3"]
[TimeControl "180+1"]
[Date "2023.10.31"]
[WhiteClock "0:00:29"]
[BlackClock "0:00:18"]
[Board "68"]

1. e4 {[%clk 0:03:00]}  e5 {[%clk 0:02:58]} 2. Nf3 {[%clk 0:03:00]}  Nc6 {[%clk 0:02:58]} 3. Bb5 {[%clk 0:02:58]}  a6 {[%clk 0:02:59]} 4. Ba4 {[%clk 0:02:58]}  Nf6 {[%clk 0:02:52]} 5. d3 {[%clk 0:02:57]}  d6 {[%clk 0:02:51]} 6. c3 {[%clk 0:02:55]}  g6 {[%clk 0:02:50]} 7. h3 {[%clk 0:02:52]}  Bg7 {[%clk 0:02:50]} 8. O-O {[%clk 0:02:52]}  O-O {[%clk 0:02:51]} 9. Re1 {[%clk 0:02:49]}  Nh5 {[%clk 0:02:44]} 10. Nbd2 {[%clk 0:02:46]}  Nf4 {[%clk 0:02:40]} 11. Nf1 {[%clk 0:02:45]}  b5 {[%clk 0:02:40]} 12. Bb3 {[%clk 0:02:44]}  Na5 {[%clk 0:02:33]} 13. Bc2 {[%clk 0:02:43]}  c5 {[%clk 0:02:33]} 14. d4 {[%clk 0:02:37]}  Nc6 {[%clk 0:02:25]} 15. Be3 {[%clk 0:02:28]}  Qe7 {[%clk 0:02:19]} 16. Ng3 {[%clk 0:02:14]}  Rd8 {[%clk 0:02:14]} 17. d5 {[%clk 0:02:10]}  Nb8 {[%clk 0:02:09]} 18. Qd2 {[%clk 0:02:08]}  Qf6 {[%clk 0:02:03]} 19. Nh2 {[%clk 0:01:54]}  Nd7 {[%clk 0:01:53]} 20. Ne2 {[%clk 0:01:51]}  g5 {[%clk 0:01:41]} 21. a4 {[%clk 0:01:40]}  Rb8 {[%clk 0:01:35]} 22. axb5 {[%clk 0:01:39]}  axb5 {[%clk 0:01:36]} 23. Ra7 {[%clk 0:01:39]}  Nf8 {[%clk 0:01:33]} 24. Ng3 {[%clk 0:01:31]}  Rd7 {[%clk 0:01:22]} 25. Rea1 {[%clk 0:01:30]}  N8g6 {[%clk 0:01:18]} 26. Nf5 {[%clk 0:01:29]}  h5 {[%clk 0:01:11]} 27. Ra8 {[%clk 0:01:15]}  Rdb7 {[%clk 0:01:08]} 28. Qd1 {[%clk 0:01:02]}  Bd7 {[%clk 0:00:55]} 29. Qf1 {[%clk 0:01:01]}  Ne7 {[%clk 0:00:46]} 30. g3 {[%clk 0:00:56]}  Nxf5 {[%clk 0:00:44]} 31. gxf4 {[%clk 0:00:47]}  exf4 {[%clk 0:00:37]} 32. exf5 {[%clk 0:00:47]}  fxe3 {[%clk 0:00:37]} 33. fxe3 {[%clk 0:00:48]}  Qe5 {[%clk 0:00:37]} 34. Qf3 {[%clk 0:00:45]}  b4 {[%clk 0:00:35]} 35. Rf1 {[%clk 0:00:41]}  Rxa8 {[%clk 0:00:34]} 36. f6 {[%clk 0:00:40]}  g4 {[%clk 0:00:19]} 37. hxg4 {[%clk 0:00:38]}  hxg4 {[%clk 0:00:20]} 38. Nxg4 {[%clk 0:00:33]}  Qg5 {[%clk 0:00:20]} 39. Bf5 {[%clk 0:00:31]}  Bxf5 {[%clk 0:00:19]} 40. Qxf5 {[%clk 0:00:32]}  Qxf5 {[%clk 0:00:19]} 41. Rxf5 {[%clk 0:00:33]}  bxc3 {[%clk 0:00:19]} 42. Rg5 {[%clk 0:00:33]}  cxb2 {[%clk 0:00:18]} 43. Rxg7+ {[%clk 0:00:29]}  Kh8 {[%clk 0:00:18]} 0-1


[Site "https://www.chess.com"]

[Event "Titled Tuesday Blitz October 31 Early 2023"]
[White "Kalogeris, Ioannis"]
[Black "Golizadeh, Asghar"]
[WhiteFideId "4239563"]
[BlackFideId "12505269"]
[WhiteElo "2500"]
[BlackElo "2783"]
[Result "0-1"]
[Round "3"]
[TimeControl "180+1"]
[Date "2023.10.31"]
[WhiteClock "0:00:16"]
[BlackClock "0:00:16"]
[Board "70"]

1. e4 {[%clk 0:03:00]}  c5 {[%clk 0:02:59]} 2. Nf3 {[%clk 0:03:00]}  g6 {[%clk 0:02:58]} 3. d4 {[%clk 0:02:55]}  cxd4 {[%clk 0:02:59]} 4. Nxd4 {[%clk 0:02:55]}  Nc6 {[%clk 0:02:57]} 5. Nxc6 {[%clk 0:02:50]}  bxc6 {[%clk 0:02:58]} 6. Qd4 {[%clk 0:02:50]}  Nf6 {[%clk 0:02:56]} 7. e5 {[%clk 0:02:50]}  Nd5 {[%clk 0:02:55]} 8. e6 {[%clk 0:02:49]}  f6 {[%clk 0:02:52]} 9. exd7+ {[%clk 0:02:30]}  Bxd7 {[%clk 0:02:50]} 10. Be2 {[%clk 0:02:30]}  e5 {[%clk 0:02:47]} 11. Qc4 {[%clk 0:02:29]}  Bg7 {[%clk 0:02:43]} 12. O-O {[%clk 0:02:25]}  Nb6 {[%clk 0:02:08]} 13. Qc5 {[%clk 0:02:20]}  Qe7 {[%clk 0:02:01]} 14. Qxe7+ {[%clk 0:02:19]}  Kxe7 {[%clk 0:02:02]} 15. Be3 {[%clk 0:02:16]}  Rhd8 {[%clk 0:01:53]} 16. c4 {[%clk 0:02:13]}  Be6 {[%clk 0:01:52]} 17. b3 {[%clk 0:02:11]}  Kf7 {[%clk 0:01:51]} 18. Bf3 {[%clk 0:02:08]}  e4 {[%clk 0:01:45]} 19. Bxe4 {[%clk 0:01:44]}  f5 {[%clk 0:01:45]} 20. Bxc6 {[%clk 0:01:45]}  Bxa1 {[%clk 0:01:45]} 21. Bxa8 {[%clk 0:01:43]}  Rxa8 {[%clk 0:01:30]} 22. Na3 {[%clk 0:01:43]}  Be5 {[%clk 0:01:17]} 23. Nb5 {[%clk 0:01:43]}  a6 {[%clk 0:00:58]} 24. Nd4 {[%clk 0:01:33]}  Nd7 {[%clk 0:00:53]} 25. Nc6 {[%clk 0:01:30]}  Bf6 {[%clk 0:00:45]} 26. f4 {[%clk 0:01:29]}  Rc8 {[%clk 0:00:39]} 27. Na5 {[%clk 0:01:28]}  Bc3 {[%clk 0:00:30]} 28. Nb7 {[%clk 0:01:28]}  Rb8 {[%clk 0:00:19]} 29. Nd6+ {[%clk 0:01:20]}  Ke7 {[%clk 0:00:19]} 30. c5 {[%clk 0:01:02]}  Bb4 {[%clk 0:00:19]} 31. Rc1 {[%clk 0:00:57]}  Bxc5 {[%clk 0:00:18]} 32. Rxc5 {[%clk 0:00:47]}  Nxc5 {[%clk 0:00:18]} 33. Bxc5 {[%clk 0:00:46]}  Kd7 {[%clk 0:00:18]} 34. Kf2 {[%clk 0:00:40]}  a5 {[%clk 0:00:17]} 35. Ke3 {[%clk 0:00:39]}  a4 {[%clk 0:00:18]} 36. bxa4 {[%clk 0:00:37]}  Ra8 {[%clk 0:00:18]} 37. a3 {[%clk 0:00:33]}  Rxa4 {[%clk 0:00:18]} 38. Kd3 {[%clk 0:00:23]}  Kc6 {[%clk 0:00:19]} 39. Bb4 {[%clk 0:00:23]}  Rxb4 {[%clk 0:00:19]} 40. axb4 {[%clk 0:00:24]}  Kxd6 {[%clk 0:00:19]} 41. Kd4 {[%clk 0:00:25]}  Bd5 {[%clk 0:00:19]} 42. g3 {[%clk 0:00:25]}  Be4 {[%clk 0:00:16]} 43. Kc4 {[%clk 0:00:25]}  h5 {[%clk 0:00:16]} 44. h4 {[%clk 0:00:25]}  Kc6 {[%clk 0:00:16]} 45. Kd4 {[%clk 0:00:24]}  Kd6 {[%clk 0:00:16]} 46. b5 {[%clk 0:00:23]}  Bb7 {[%clk 0:00:16]} 47. Kc4 {[%clk 0:00:22]}  Bd5+ {[%clk 0:00:16]} 48. Kd4 {[%clk 0:00:22]}  Be6 {[%clk 0:00:16]} 49. b6 {[%clk 0:00:16]}  Bd5 {[%clk 0:00:16]} 0-1


[Site "https://www.chess.com"]

[Event "Titled Tuesday Blitz October 31 Early 2023"]
[White "MFatigue"]
[Black "Hayrapetyan, Hovik"]
[BlackFideId "13302639"]
[WhiteElo "2489"]
[BlackElo "2770"]
[Result "0-1"]
[Round "3"]
[TimeControl "180+1"]
[Date "2023.10.31"]
[WhiteClock "0:00:06"]
[BlackClock "0:00:07"]
[Board "72"]

1. e4 {[%clk 0:03:00]}  c5 {[%clk 0:03:00]} 2. a3 {[%clk 0:03:01]}  g6 {[%clk 0:02:59]} 3. h4 {[%clk 0:02:59]}  Nf6 {[%clk 0:02:52]} 4. Nc3 {[%clk 0:02:59]}  d6 {[%clk 0:02:50]} 5. Bc4 {[%clk 0:02:59]}  Bg7 {[%clk 0:02:50]} 6. d3 {[%clk 0:02:59]}  Nc6 {[%clk 0:02:49]} 7. Nge2 {[%clk 0:02:57]}  a6 {[%clk 0:02:46]} 8. Ba2 {[%clk 0:02:55]}  b5 {[%clk 0:02:42]} 9. Be3 {[%clk 0:02:50]}  Bb7 {[%clk 0:02:39]} 10. Qd2 {[%clk 0:02:49]}  h5 {[%clk 0:02:33]} 11. Bg5 {[%clk 0:02:42]}  e6 {[%clk 0:02:24]} 12. O-O {[%clk 0:02:19]}  Qb6 {[%clk 0:02:16]} 13. Rad1 {[%clk 0:02:08]}  Nd7 {[%clk 0:02:12]} 14. Rde1 {[%clk 0:01:48]}  a5 {[%clk 0:02:02]} 15. Bb1 {[%clk 0:01:47]}  b4 {[%clk 0:02:01]} 16. axb4 {[%clk 0:01:48]}  axb4 {[%clk 0:02:01]} 17. Nd1 {[%clk 0:01:49]}  Ra1 {[%clk 0:01:59]} 18. Ne3 {[%clk 0:01:38]}  Ba6 {[%clk 0:01:52]} 19. b3 {[%clk 0:01:27]}  Nd4 {[%clk 0:01:32]} 20. Nxd4 {[%clk 0:01:27]}  Bxd4 {[%clk 0:01:32]} 21. Qe2 {[%clk 0:01:15]}  f6 {[%clk 0:01:19]} 22. Bf4 {[%clk 0:01:13]}  Kf7 {[%clk 0:01:17]} 23. g4 {[%clk 0:00:51]}  hxg4 {[%clk 0:01:15]} 24. Qxg4 {[%clk 0:00:52]}  Rh5 {[%clk 0:01:04]} 25. Bg3 {[%clk 0:00:50]}  Ne5 {[%clk 0:00:58]} 26. Qe2 {[%clk 0:00:34]}  Nc6 {[%clk 0:00:47]} 27. Kg2 {[%clk 0:00:30]}  Bc3 {[%clk 0:00:39]} 28. Rd1 {[%clk 0:00:29]}  Nd4 {[%clk 0:00:38]} 29. Qg4 {[%clk 0:00:30]}  f5 {[%clk 0:00:35]} 30. exf5 {[%clk 0:00:26]}  Bb7+ {[%clk 0:00:35]} 31. f3 {[%clk 0:00:21]}  exf5 {[%clk 0:00:33]} 32. Qf4 {[%clk 0:00:22]}  Ne2 {[%clk 0:00:11]} 33. Qc4+ {[%clk 0:00:07]}  Kg7 {[%clk 0:00:11]} 34. Nd5 {[%clk 0:00:08]}  Bxd5 {[%clk 0:00:06]} 35. Qxd5 {[%clk 0:00:08]}  Nxg3 {[%clk 0:00:06]} 36. Kxg3 {[%clk 0:00:08]}  Qd8 {[%clk 0:00:06]} 37. Qc4 {[%clk 0:00:08]}  Qf6 {[%clk 0:00:06]} 38. Kg2 {[%clk 0:00:05]}  Rxh4 {[%clk 0:00:06]} 39. Qb5 {[%clk 0:00:06]}  Qg5+ {[%clk 0:00:06]} 40. Kf2 {[%clk 0:00:06]}  Rh2# {[%clk 0:00:07]} 0-1


[Site "https://www.chess.com"]

[Event "Titled Tuesday Blitz October 31 Early 2023"]
[White "Samsonkin, Artiom"]
[Black "Mndapoetzz04"]
[WhiteFideId "13503111"]
[WhiteElo "2764"]
[BlackElo "2489"]
[Result "0-1"]
[Round "3"]
[TimeControl "180+1"]
[Date "2023.10.31"]
[WhiteClock "0:00:00"]
[BlackClock "0:00:03"]
[Board "73"]

1. e4 {[%clk 0:03:00]}  c5 {[%clk 0:02:55]} 2. Nf3 {[%clk 0:03:00]}  Nc6 {[%clk 0:02:49]} 3. Bb5 {[%clk 0:03:00]}  g6 {[%clk 0:02:48]} 4. c3 {[%clk 0:03:00]}  Bg7 {[%clk 0:02:46]} 5. d4 {[%clk 0:03:00]}  cxd4 {[%clk 0:02:28]} 6. cxd4 {[%clk 0:03:01]}  Nf6 {[%clk 0:02:22]} 7. Nc3 {[%clk 0:03:01]}  d5 {[%clk 0:02:21]} 8. Ne5 {[%clk 0:03:01]}  O-O {[%clk 0:02:14]} 9. Nxc6 {[%clk 0:02:59]}  bxc6 {[%clk 0:02:14]} 10. Bxc6 {[%clk 0:03:00]}  Ba6 {[%clk 0:02:09]} 11. Bxa8 {[%clk 0:02:52]}  Qxa8 {[%clk 0:02:10]} 12. e5 {[%clk 0:02:52]}  Ne4 {[%clk 0:02:00]} 13. Ne2 {[%clk 0:02:47]}  f6 {[%clk 0:01:57]} 14. f3 {[%clk 0:02:32]}  fxe5 {[%clk 0:01:50]} 15. fxe4 {[%clk 0:02:31]}  exd4 {[%clk 0:01:48]} 16. e5 {[%clk 0:02:14]}  Rf5 {[%clk 0:01:41]} 17. Nxd4 {[%clk 0:02:04]}  Rxe5+ {[%clk 0:01:40]} 18. Kf2 {[%clk 0:02:05]}  Re4 {[%clk 0:01:34]} 19. Nf3 {[%clk 0:02:04]}  Re2+ {[%clk 0:01:22]} 20. Kg3 {[%clk 0:01:41]}  d4 {[%clk 0:01:15]} 21. Re1 {[%clk 0:01:29]}  Be5+ {[%clk 0:01:10]} 22. Kh4 {[%clk 0:00:21]}  Qe4+ {[%clk 0:01:09]} 23. g4 {[%clk 0:00:21]}  Qxf3 {[%clk 0:01:05]} 24. Rxe2 {[%clk 0:00:12]}  Bxe2 {[%clk 0:00:11]} 25. Qb3+ {[%clk 0:00:11]}  Qxb3 {[%clk 0:00:12]} 26. axb3 {[%clk 0:00:12]}  d3 {[%clk 0:00:12]} 27. Rxa7 {[%clk 0:00:11]}  Bxb2 {[%clk 0:00:12]} 28. Bd2 {[%clk 0:00:04]}  h6 {[%clk 0:00:06]} 29. Kg3 {[%clk 0:00:04]}  Be5+ {[%clk 0:00:05]} 30. Kg2 {[%clk 0:00:05]}  Bd6 {[%clk 0:00:04]} 31. h3 {[%clk 0:00:04]}  Bd1 {[%clk 0:00:04]} 32. b4 {[%clk 0:00:05]}  Bb3 {[%clk 0:00:02]} 33. b5 {[%clk 0:00:00]}  Kf7 {[%clk 0:00:03]} 0-1


[Site "https://www.chess.com"]

[Event "Titled Tuesday Blitz October 31 Early 2023"]
[White "Tatarinov, Dmitry"]
[Black "Avazkhonov, Alikhon"]
[WhiteFideId "24160067"]
[BlackFideId "14208504"]
[WhiteElo "2764"]
[BlackElo "2488"]
[Result "0-1"]
[Round "3"]
[TimeControl "180+1"]
[Date "2023.10.31"]
[WhiteClock "0:01:00"]
[BlackClock "0:00:04"]
[Board "74"]

1. Nf3 {[%clk 0:02:57]}  d5 {[%clk 0:02:59]} 2. d4 {[%clk 0:02:57]}  c6 {[%clk 0:02:58]} 3. c4 {[%clk 0:02:58]}  e6 {[%clk 0:02:58]} 4. e3 {[%clk 0:02:58]}  Bd6 {[%clk 0:02:57]} 5. Bd3 {[%clk 0:02:59]}  f5 {[%clk 0:02:57]} 6. O-O {[%clk 0:02:59]}  Nf6 {[%clk 0:02:58]} 7. b3 {[%clk 0:03:00]}  O-O {[%clk 0:02:59]} 8. Bb2 {[%clk 0:03:01]}  Qe7 {[%clk 0:02:55]} 9. Nc3 {[%clk 0:02:56]}  b6 {[%clk 0:02:55]} 10. Qc2 {[%clk 0:02:56]}  Bb7 {[%clk 0:02:51]} 11. cxd5 {[%clk 0:02:51]}  cxd5 {[%clk 0:02:52]} 12. Nb5 {[%clk 0:02:50]}  Nbd7 {[%clk 0:02:53]} 13. Nxd6 {[%clk 0:02:49]}  Qxd6 {[%clk 0:02:54]} 14. Ne5 {[%clk 0:02:50]}  Rac8 {[%clk 0:02:39]} 15. Qe2 {[%clk 0:02:50]}  Ne4 {[%clk 0:02:38]} 16. Rfc1 {[%clk 0:02:48]}  Rxc1+ {[%clk 0:02:37]} 17. Rxc1 {[%clk 0:02:48]}  Nxe5 {[%clk 0:02:37]} 18. dxe5 {[%clk 0:02:48]}  Qe7 {[%clk 0:02:36]} 19. f3 {[%clk 0:02:46]}  Nc5 {[%clk 0:02:30]} 20. Ba3 {[%clk 0:02:45]}  Rc8 {[%clk 0:02:30]} 21. Qd2 {[%clk 0:02:39]}  Qd8 {[%clk 0:02:24]} 22. Be2 {[%clk 0:02:38]}  Ba6 {[%clk 0:02:12]} 23. Rxc5 {[%clk 0:02:34]}  Rxc5 {[%clk 0:01:49]} 24. Bxc5 {[%clk 0:02:05]}  Bxe2 {[%clk 0:01:40]} 25. Bxb6 {[%clk 0:02:03]}  Qxb6 {[%clk 0:01:28]} 26. Qxe2 {[%clk 0:02:04]}  f4 {[%clk 0:01:01]} 27. Kf2 {[%clk 0:02:00]}  Qc5 {[%clk 0:00:59]} 28. g3 {[%clk 0:01:53]}  fxe3+ {[%clk 0:00:57]} 29. Qxe3 {[%clk 0:01:53]}  d4 {[%clk 0:00:51]} 30. Qe4 {[%clk 0:01:48]}  d3+ {[%clk 0:00:50]} 31. Qe3 {[%clk 0:01:27]}  Qc2+ {[%clk 0:00:46]} 32. Ke1 {[%clk 0:01:28]}  Qb1+ {[%clk 0:00:42]} 33. Kd2 {[%clk 0:01:27]}  Qc2+ {[%clk 0:00:39]} 34. Ke1 {[%clk 0:01:27]}  Qb1+ {[%clk 0:00:30]} 35. Kf2 {[%clk 0:01:17]}  Qxa2+ {[%clk 0:00:24]} 36. Ke1 {[%clk 0:01:18]}  Qb1+ {[%clk 0:00:23]} 37. Kf2 {[%clk 0:01:17]}  Qxb3 {[%clk 0:00:15]} 38. Qxa7 {[%clk 0:01:17]}  Qc2+ {[%clk 0:00:15]} 39. Ke3 {[%clk 0:01:15]}  Qe2+ {[%clk 0:00:09]} 40. Kf4 {[%clk 0:01:14]}  d2 {[%clk 0:00:07]} 41. Qb8+ {[%clk 0:01:14]}  Kf7 {[%clk 0:00:07]} 42. Qc7+ {[%clk 0:01:15]}  Kg6 {[%clk 0:00:07]} 43. Qc2+ {[%clk 0:01:14]}  Kh6 {[%clk 0:00:07]} 44. Qc6 {[%clk 0:01:05]}  d1=Q {[%clk 0:00:03]} 45. Qxe6+ {[%clk 0:01:05]}  g6 {[%clk 0:00:04]} 46. Qh3+ {[%clk 0:01:04]}  Kg7 {[%clk 0:00:05]} 47. Qe6 {[%clk 0:01:03]}  Qdd2+ {[%clk 0:00:04]} 48. Kg4 {[%clk 0:01:04]}  Qd4+ {[%clk 0:00:04]} 49. Kg5 {[%clk 0:01:02]}  Qexe5+ {[%clk 0:00:04]} 50. Qf5 {[%clk 0:01:00]}  Qxf5# {[%clk 0:00:04]} 0-1


[Site "https://www.chess.com"]

[Event "Titled Tuesday Blitz October 31 Early 2023"]
[White "Cervantes Landeiro, Thalia"]
[Black "Costachi, Mihnea"]
[WhiteFideId "3520498"]
[BlackFideId "1217518"]
[WhiteElo "2484"]
[BlackElo "2752"]
[Result "1/2-1/2"]
[Round "3"]
[TimeControl "180+1"]
[Date "2023.10.31"]
[WhiteClock "0:00:13"]
[BlackClock "0:01:10"]
[Board "75"]

1. d4 {[%clk 0:03:00]}  Nf6 {[%clk 0:02:57]} 2. c4 {[%clk 0:03:00]}  Nc6 {[%clk 0:02:57]} 3. Nf3 {[%clk 0:02:59]}  e6 {[%clk 0:02:57]} 4. g3 {[%clk 0:02:52]}  Bb4+ {[%clk 0:02:55]} 5. Nbd2 {[%clk 0:02:52]}  b6 {[%clk 0:02:54]} 6. Bg2 {[%clk 0:02:52]}  Bb7 {[%clk 0:02:54]} 7. a3 {[%clk 0:02:52]}  Be7 {[%clk 0:02:53]} 8. O-O {[%clk 0:02:52]}  O-O {[%clk 0:02:52]} 9. e4 {[%clk 0:02:48]}  d6 {[%clk 0:02:51]} 10. b4 {[%clk 0:02:44]}  e5 {[%clk 0:02:49]} 11. d5 {[%clk 0:02:43]}  Nb8 {[%clk 0:02:49]} 12. Qc2 {[%clk 0:02:37]}  c5 {[%clk 0:02:41]} 13. b5 {[%clk 0:01:55]}  Bc8 {[%clk 0:02:29]} 14. a4 {[%clk 0:01:52]}  a5 {[%clk 0:02:29]} 15. Ne1 {[%clk 0:01:38]}  Ne8 {[%clk 0:02:27]} 16. Nd3 {[%clk 0:01:36]}  f5 {[%clk 0:02:26]} 17. exf5 {[%clk 0:01:35]}  Bxf5 {[%clk 0:02:26]} 18. Ne4 {[%clk 0:01:33]}  h6 {[%clk 0:02:23]} 19. f3 {[%clk 0:01:33]}  Nf6 {[%clk 0:02:23]} 20. Ndf2 {[%clk 0:01:31]}  Nbd7 {[%clk 0:02:21]} 21. Qe2 {[%clk 0:01:30]}  Nxe4 {[%clk 0:02:18]} 22. Nxe4 {[%clk 0:01:30]}  Nf6 {[%clk 0:02:18]} 23. Bd2 {[%clk 0:01:21]}  Qe8 {[%clk 0:02:18]} 24. Rae1 {[%clk 0:01:20]}  Qg6 {[%clk 0:02:18]} 25. Bc3 {[%clk 0:01:01]}  Nxe4 {[%clk 0:02:15]} 26. fxe4 {[%clk 0:00:59]}  Bg4 {[%clk 0:02:16]} 27. Qd3 {[%clk 0:00:59]}  Bg5 {[%clk 0:02:11]} 28. Bd2 {[%clk 0:00:58]}  Bxd2 {[%clk 0:02:10]} 29. Qxd2 {[%clk 0:00:58]}  Qh5 {[%clk 0:02:11]} 30. Rf2 {[%clk 0:00:35]}  Rxf2 {[%clk 0:02:09]} 31. Qxf2 {[%clk 0:00:34]}  Rf8 {[%clk 0:02:10]} 32. Qe3 {[%clk 0:00:35]}  Bh3 {[%clk 0:01:56]} 33. Qe2 {[%clk 0:00:28]}  Bg4 {[%clk 0:01:54]} 34. Qe3 {[%clk 0:00:28]}  Bd1 {[%clk 0:01:49]} 35. Qa3 {[%clk 0:00:19]}  Bf3 {[%clk 0:01:41]} 36. Qe3 {[%clk 0:00:13]}  Bd1 {[%clk 0:01:32]} 37. Qa3 {[%clk 0:00:13]}  Be2 {[%clk 0:01:32]} 38. Qc3 {[%clk 0:00:11]}  Rf6 {[%clk 0:01:26]} 39. Qc2 {[%clk 0:00:10]}  Bf3 {[%clk 0:01:23]} 40. Rf1 {[%clk 0:00:11]}  Bxg2 {[%clk 0:01:16]} 41. Rxf6 {[%clk 0:00:11]}  gxf6 {[%clk 0:01:16]} 42. Kxg2 {[%clk 0:00:11]}  Kg7 {[%clk 0:01:14]} 43. Qf2 {[%clk 0:00:11]}  Qd1 {[%clk 0:01:13]} 44. Qf5 {[%clk 0:00:12]}  Qe2+ {[%clk 0:01:10]} 45. Kh3 {[%clk 0:00:11]}  Qxc4 {[%clk 0:01:09]} 46. Qd7+ {[%clk 0:00:11]}  Kg6 {[%clk 0:01:10]} 47. Qg4+ {[%clk 0:00:11]}  Kf7 {[%clk 0:01:09]} 48. Qd7+ {[%clk 0:00:12]}  Kg6 {[%clk 0:01:09]} 49. Qg4+ {[%clk 0:00:12]}  Kf7 {[%clk 0:01:09]} 50. Qd7+ {[%clk 0:00:13]}  Kg8 {[%clk 0:01:09]} 51. Qe8+ {[%clk 0:00:12]}  Kg7 {[%clk 0:01:10]} 52. Qd7+ {[%clk 0:00:13]}  Kg6 {[%clk 0:01:10]} 1/2-1/2


[Site "https://www.chess.com"]

[Event "Titled Tuesday Blitz October 31 Early 2023"]
[White "Schmakel, Sam"]
[Black "Tikhonov, Viacheslav"]
[WhiteFideId "2039311"]
[BlackFideId "44196407"]
[WhiteElo "2733"]
[BlackElo "2474"]
[Result "1-0"]
[Round "3"]
[TimeControl "180+1"]
[Date "2023.10.31"]
[WhiteClock "0:01:15"]
[BlackClock "0:00:05"]
[Board "79"]

1. d4 {[%clk 0:02:59]}  Nf6 {[%clk 0:02:59]} 2. c4 {[%clk 0:03:00]}  g6 {[%clk 0:02:58]} 3. f3 {[%clk 0:02:58]}  e6 {[%clk 0:02:54]} 4. e4 {[%clk 0:02:57]}  d5 {[%clk 0:02:55]} 5. e5 {[%clk 0:02:57]}  Nh5 {[%clk 0:02:49]} 6. Nh3 {[%clk 0:02:57]}  c5 {[%clk 0:02:31]} 7. cxd5 {[%clk 0:02:20]}  exd5 {[%clk 0:02:22]} 8. g4 {[%clk 0:02:13]}  Qh4+ {[%clk 0:01:50]} 9. Nf2 {[%clk 0:02:13]}  Ng7 {[%clk 0:01:23]} 10. Nc3 {[%clk 0:02:12]}  Be6 {[%clk 0:01:04]} 11. Qb3 {[%clk 0:01:43]}  Qe7 {[%clk 0:00:22]} 12. Nxd5 {[%clk 0:01:38]}  Bxd5 {[%clk 0:00:21]} 13. Qxd5 {[%clk 0:01:39]}  cxd4 {[%clk 0:00:16]} 14. Bb5+ {[%clk 0:01:34]}  Nd7 {[%clk 0:00:13]} 15. Ne4 {[%clk 0:01:34]}  Qb4+ {[%clk 0:00:12]} 16. Bd2 {[%clk 0:01:30]}  Qe7 {[%clk 0:00:04]} 17. Bxd7+ {[%clk 0:01:15]}  Qxd7 {[%clk 0:00:04]} 18. Nf6+ {[%clk 0:01:15]}  Ke7 {[%clk 0:00:05]} 19. Qxd7# {[%clk 0:01:15]} 1-0


[Site "https://www.chess.com"]

[Event "Titled Tuesday Blitz October 31 Early 2023"]
[White "Ovetchkin, Roman"]
[Black "Herman, Daniel"]
[WhiteFideId "4119991"]
[BlackFideId "30935008"]
[WhiteElo "2687"]
[BlackElo "2452"]
[Result "1-0"]
[Round "3"]
[TimeControl "180+1"]
[Date "2023.10.31"]
[WhiteClock "0:00:24"]
[BlackClock "0:00:00"]
[Board "86"]

1. d4 {[%clk 0:02:56]}  g6 {[%clk 0:02:58]} 2. e4 {[%clk 0:02:54]}  Bg7 {[%clk 0:02:58]} 3. Nc3 {[%clk 0:02:54]}  d6 {[%clk 0:02:58]} 4. Be3 {[%clk 0:02:52]}  a6 {[%clk 0:02:59]} 5. f4 {[%clk 0:02:50]}  b5 {[%clk 0:02:57]} 6. Bd3 {[%clk 0:02:48]}  Bb7 {[%clk 0:02:55]} 7. Nf3 {[%clk 0:02:48]}  Nf6 {[%clk 0:02:46]} 8. e5 {[%clk 0:02:43]}  Nd5 {[%clk 0:02:44]} 9. Nxd5 {[%clk 0:02:41]}  Bxd5 {[%clk 0:02:45]} 10. a4 {[%clk 0:02:41]}  b4 {[%clk 0:02:42]} 11. Qe2 {[%clk 0:02:38]}  O-O {[%clk 0:02:33]} 12. O-O {[%clk 0:02:28]}  c5 {[%clk 0:02:30]} 13. dxc5 {[%clk 0:02:21]}  dxe5 {[%clk 0:02:29]} 14. Nxe5 {[%clk 0:02:21]}  Nc6 {[%clk 0:02:27]} 15. Nxc6 {[%clk 0:02:10]}  Bxc6 {[%clk 0:02:28]} 16. Bxa6 {[%clk 0:02:07]}  Bxb2 {[%clk 0:02:27]} 17. Rad1 {[%clk 0:02:04]}  Qc7 {[%clk 0:02:05]} 18. Bb5 {[%clk 0:02:02]}  Rfd8 {[%clk 0:01:26]} 19. Qc4 {[%clk 0:01:44]}  Bc3 {[%clk 0:01:16]} 20. Rd3 {[%clk 0:01:03]}  Rxd3 {[%clk 0:00:53]} 21. cxd3 {[%clk 0:01:02]}  Rd8 {[%clk 0:00:53]} 22. Bxc6 {[%clk 0:00:52]}  Qxc6 {[%clk 0:00:54]} 23. Qb5 {[%clk 0:00:53]}  Qd5 {[%clk 0:00:47]} 24. c6 {[%clk 0:00:53]}  Bd4 {[%clk 0:00:34]} 25. Bxd4 {[%clk 0:00:50]}  Qxd4+ {[%clk 0:00:34]} 26. Kh1 {[%clk 0:00:50]}  Qc3 {[%clk 0:00:24]} 27. h3 {[%clk 0:00:33]}  Rc8 {[%clk 0:00:12]} 28. Rb1 {[%clk 0:00:31]}  Rxc6 {[%clk 0:00:10]} 29. Qxb4 {[%clk 0:00:31]}  Qxd3 {[%clk 0:00:10]} 30. Qb8+ {[%clk 0:00:30]}  Kg7 {[%clk 0:00:10]} 31. Qe5+ {[%clk 0:00:30]}  Kh6 {[%clk 0:00:08]} 32. Ra1 {[%clk 0:00:28]}  Qf5 {[%clk 0:00:03]} 33. Qxe7 {[%clk 0:00:25]}  Ra6 {[%clk 0:00:03]} 34. Qf8+ {[%clk 0:00:23]}  Kh5 {[%clk 0:00:00]} 35. g4+ {[%clk 0:00:24]} 1-0


[Site "https://www.chess.com"]

[Event "Titled Tuesday Blitz October 31 Early 2023"]
[White "Liu, Casper"]
[Black "Preotu, Razvan"]
[WhiteFideId "1454153"]
[BlackFideId "2613280"]
[WhiteElo "2447"]
[BlackElo "2686"]
[Result "0-1"]
[Round "3"]
[TimeControl "180+1"]
[Date "2023.10.31"]
[WhiteClock "0:00:00"]
[BlackClock "0:00:36"]
[Board "87"]

1. e4 {[%clk 0:02:57]}  c5 {[%clk 0:02:59]} 2. d4 {[%clk 0:02:57]}  cxd4 {[%clk 0:03:00]} 3. Qxd4 {[%clk 0:02:54]}  Nc6 {[%clk 0:02:59]} 4. Qe3 {[%clk 0:02:54]}  Nf6 {[%clk 0:02:56]} 5. Nc3 {[%clk 0:02:55]}  d5 {[%clk 0:02:56]} 6. exd5 {[%clk 0:02:55]}  Nxd5 {[%clk 0:02:57]} 7. Nxd5 {[%clk 0:02:56]}  Qxd5 {[%clk 0:02:57]} 8. Qb3 {[%clk 0:02:57]}  Qxb3 {[%clk 0:02:21]} 9. axb3 {[%clk 0:02:58]}  Nb4 {[%clk 0:02:18]} 10. Ra4 {[%clk 0:02:54]}  e6 {[%clk 0:02:09]} 11. Bb5+ {[%clk 0:02:49]}  Bd7 {[%clk 0:02:09]} 12. Bxd7+ {[%clk 0:02:33]}  Kxd7 {[%clk 0:02:10]} 13. Bd2 {[%clk 0:02:30]}  Nxc2+ {[%clk 0:01:51]} 14. Kd1 {[%clk 0:02:29]}  b5 {[%clk 0:01:52]} 15. Rh4 {[%clk 0:01:36]}  Na1 {[%clk 0:01:27]} 16. Rd4+ {[%clk 0:01:19]}  Ke8 {[%clk 0:01:26]} 17. Rd3 {[%clk 0:01:04]}  Rd8 {[%clk 0:01:27]} 18. Rxd8+ {[%clk 0:01:04]}  Kxd8 {[%clk 0:01:28]} 19. b4 {[%clk 0:00:55]}  Nb3 {[%clk 0:01:27]} 20. Bc3 {[%clk 0:00:49]}  a5 {[%clk 0:01:26]} 21. bxa5 {[%clk 0:00:25]}  b4 {[%clk 0:01:27]} 22. Kc2 {[%clk 0:00:23]}  Nxa5 {[%clk 0:01:25]} 23. Bd4 {[%clk 0:00:19]}  Nc6 {[%clk 0:01:04]} 24. Nf3 {[%clk 0:00:19]}  Nxd4+ {[%clk 0:01:03]} 25. Nxd4 {[%clk 0:00:20]}  Bc5 {[%clk 0:01:03]} 26. Rd1 {[%clk 0:00:18]}  Ke7 {[%clk 0:01:00]} 27. Nc6+ {[%clk 0:00:11]}  Kf6 {[%clk 0:01:01]} 28. Rd8 {[%clk 0:00:06]}  Rxd8 {[%clk 0:00:59]} 29. Nxd8 {[%clk 0:00:07]}  Bxf2 {[%clk 0:00:59]} 30. Kb3 {[%clk 0:00:06]}  Bg1 {[%clk 0:00:47]} 31. h3 {[%clk 0:00:06]}  Bc5 {[%clk 0:00:45]} 32. Nc6 {[%clk 0:00:05]}  e5 {[%clk 0:00:44]} 33. Nxb4 {[%clk 0:00:06]}  Bxb4 {[%clk 0:00:43]} 34. Kxb4 {[%clk 0:00:06]}  Ke6 {[%clk 0:00:44]} 35. Kc4 {[%clk 0:00:07]}  Kd6 {[%clk 0:00:37]} 36. b3 {[%clk 0:00:00]}  f5 {[%clk 0:00:36]} 0-1


[Site "https://www.chess.com"]